[Event "Early-Titled-Tuesday-Blitz-February-27-2024"]
[Site "Chess.com"]
[Date "2024.02.27"]
[Round "2"]
[White "Evgeny81"]
[Black "Kleyton_Lima"]
[Result "1-0"]
[WhiteElo "2765"]
[BlackElo "2540"]
[TimeControl "180+1"]
[EndTime "8:17:02 PST"]
[Termination "Evgeny81 won by checkmate"]

1. c4 {[%clk 0:03:00.9]} 1... e5 {[%clk 0:02:55.6]} 2. g3 {[%clk 0:03:00.7]}
2... Nc6 {[%clk 0:02:53.4]} 3. Bg2 {[%clk 0:03:01]} 3... g6 {[%clk 0:02:53.7]}
4. Nc3 {[%clk 0:03:01.1]} 4... Bg7 {[%clk 0:02:54.2]} 5. Nf3 {[%clk 0:03:01.3]}
5... d6 {[%clk 0:02:46.5]} 6. O-O {[%clk 0:03:00.4]} 6... Nge7 {[%clk
0:02:45.8]} 7. d3 {[%clk 0:02:57.2]} 7... O-O {[%clk 0:02:46.3]} 8. Rb1 {[%clk
0:02:57.2]} 8... a5 {[%clk 0:02:43.9]} 9. a3 {[%clk 0:02:57.3]} 9... Nd4 {[%clk
0:02:44.4]} 10. Nxd4 {[%clk 0:02:52.4]} 10... exd4 {[%clk 0:02:45.3]} 11. Ne4
{[%clk 0:02:50.6]} 11... d5 {[%clk 0:02:32.2]} 12. Nd2 {[%clk 0:02:43.8]} 12...
dxc4 {[%clk 0:02:29.5]} 13. Nxc4 {[%clk 0:02:44.7]} 13... c6 {[%clk 0:02:27.4]}
14. Bf4 {[%clk 0:02:36.5]} 14... Be6 {[%clk 0:02:21.9]} 15. Qc1 {[%clk
0:02:33.3]} 15... Bd5 {[%clk 0:02:18.7]} 16. Bh6 {[%clk 0:02:22.7]} 16... Bxg2
{[%clk 0:02:13.4]} 17. Kxg2 {[%clk 0:02:23.6]} 17... Re8 {[%clk 0:01:49.3]} 18.
Bxg7 {[%clk 0:02:21.7]} 18... Kxg7 {[%clk 0:01:50.2]} 19. Qf4 {[%clk 0:02:09.9]}
19... Nd5 {[%clk 0:01:44.2]} 20. Qxd4+ {[%clk 0:02:08.8]} 20... Kg8 {[%clk
0:01:38.8]} 21. e3 {[%clk 0:01:56.3]} 21... h5 {[%clk 0:01:23.2]} 22. h4 {[%clk
0:01:52.8]} 22... Nf6 {[%clk 0:01:19.1]} 23. Qxd8 {[%clk 0:01:52.1]} 23... Rexd8
{[%clk 0:01:14.4]} 24. d4 {[%clk 0:01:49.8]} 24... Ne4 {[%clk 0:01:11.8]} 25.
Rfd1 {[%clk 0:01:48.2]} 25... b5 {[%clk 0:01:09.4]} 26. Ne5 {[%clk 0:01:46.2]}
26... Rd6 {[%clk 0:01:01]} 27. Rbc1 {[%clk 0:01:43.8]} 27... Rc8 {[%clk
0:00:58.5]} 28. f3 {[%clk 0:01:36.7]} 28... Nf6 {[%clk 0:00:57.9]} 29. Rc5
{[%clk 0:01:36.6]} 29... Nd5 {[%clk 0:00:47.5]} 30. Kf2 {[%clk 0:01:36.4]} 30...
Kg7 {[%clk 0:00:44.2]} 31. Rdc1 {[%clk 0:01:36.1]} 31... Ne7 {[%clk 0:00:44.6]}
32. b3 {[%clk 0:01:27.4]} 32... f6 {[%clk 0:00:44.6]} 33. Nd3 {[%clk 0:01:26.6]}
33... Nd5 {[%clk 0:00:45.1]} 34. Rxb5 {[%clk 0:01:21.4]} 34... Nxe3 {[%clk
0:00:43.1]} 35. Rb7+ {[%clk 0:01:20.1]} 35... Kh6 {[%clk 0:00:43.4]} 36. Kxe3
{[%clk 0:01:19.9]} 36... Re8+ {[%clk 0:00:44]} 37. Kf2 {[%clk 0:01:13.9]} 37...
Rxd4 {[%clk 0:00:44.2]} 38. Rc3 {[%clk 0:01:14.5]} 38... Red8 {[%clk 0:00:43.3]}
39. Nf4 {[%clk 0:01:13.5]} 39... Rd2+ {[%clk 0:00:41.6]} 40. Ne2 {[%clk
0:01:13.5]} 40... Re8 {[%clk 0:00:36.9]} 41. Re3 {[%clk 0:01:13.3]} 41... Rxe3
{[%clk 0:00:36.2]} 42. Kxe3 {[%clk 0:01:13.6]} 42... Ra2 {[%clk 0:00:35.8]} 43.
b4 {[%clk 0:01:13.5]} 43... g5 {[%clk 0:00:35.8]} 44. hxg5+ {[%clk 0:01:13.2]}
44... Kxg5 {[%clk 0:00:29.7]} 45. bxa5 {[%clk 0:01:01.9]} 45... Rxa3+ {[%clk
0:00:29.7]} 46. Ke4 {[%clk 0:00:59.4]} 46... Ra4+ {[%clk 0:00:27.3]} 47. Ke3
{[%clk 0:00:56.9]} 47... Rxa5 {[%clk 0:00:27.1]} 48. Rg7+ {[%clk 0:00:52.8]}
48... Kh6 {[%clk 0:00:21.5]} 49. Rc7 {[%clk 0:00:51.9]} 49... Rc5 {[%clk
0:00:17.1]} 50. Nd4 {[%clk 0:00:50.1]} 50... Re5+ {[%clk 0:00:16.8]} 51. Kf4
{[%clk 0:00:48.7]} 51... c5 {[%clk 0:00:17.3]} 52. Nf5+ {[%clk 0:00:48.4]} 52...
Kg6 {[%clk 0:00:17.7]} 53. Rg7# {[%clk 0:00:47.9]} 1-0

[Event "Early-Titled-Tuesday-Blitz-February-27-2024"]
[Site "Chess.com"]
[Date "2024.02.27"]
[Round "2"]
[White "chess_blitz00"]
[Black "Barbix1"]
[Result "1-0"]
[WhiteElo "2523"]
[BlackElo "2276"]
[TimeControl "180+1"]
[EndTime "8:17:02 PST"]
[Termination "chess_blitz00 won on time"]

1. c3 {[%clk 0:03:00.9]} 1... Nf6 {[%clk 0:02:53.3]} 2. g3 {[%clk 0:03:00]} 2...
d5 {[%clk 0:02:51.2]} 3. Bg2 {[%clk 0:03:00.4]} 3... g6 {[%clk 0:02:51.5]} 4. d3
{[%clk 0:03:00.5]} 4... Bg7 {[%clk 0:02:51.9]} 5. Nd2 {[%clk 0:03:01.1]} 5...
O-O {[%clk 0:02:51.5]} 6. e4 {[%clk 0:02:59.6]} 6... e5 {[%clk 0:02:49.4]} 7.
Qb3 {[%clk 0:02:57.9]} 7... c6 {[%clk 0:02:44.1]} 8. Ngf3 {[%clk 0:02:55.9]}
8... Nbd7 {[%clk 0:02:38.1]} 9. O-O {[%clk 0:02:54.1]} 9... Re8 {[%clk
0:02:27.2]} 10. a4 {[%clk 0:02:51.4]} 10... dxe4 {[%clk 0:01:57.6]} 11. dxe4
{[%clk 0:02:51.1]} 11... Nc5 {[%clk 0:01:57.4]} 12. Qc2 {[%clk 0:02:45]} 12...
Qd3 {[%clk 0:01:42.3]} 13. Ne1 {[%clk 0:01:55.9]} 13... Qxc2 {[%clk 0:01:32.8]}
14. Nxc2 {[%clk 0:01:56.8]} 14... Be6 {[%clk 0:01:32.5]} 15. Ne3 {[%clk
0:01:33.6]} 15... Rad8 {[%clk 0:01:25.5]} 16. Nec4 {[%clk 0:01:22.2]} 16... Bxc4
{[%clk 0:01:24.6]} 17. Nxc4 {[%clk 0:01:22]} 17... Ncxe4 {[%clk 0:01:09.5]} 18.
Be3 {[%clk 0:01:20]} 18... b6 {[%clk 0:01:00.3]} 19. Rfd1 {[%clk 0:01:16.6]}
19... Nc5 {[%clk 0:00:41.7]} 20. Bxc5 {[%clk 0:01:03.5]} 20... bxc5 {[%clk
0:00:41.3]} 21. Bxc6 {[%clk 0:01:03.9]} 21... Rxd1+ {[%clk 0:00:32]} 22. Rxd1
{[%clk 0:01:04.8]} 22... Rb8 {[%clk 0:00:31.3]} 23. a5 {[%clk 0:00:54.9]} 23...
Kf8 {[%clk 0:00:14.4]} 24. a6 {[%clk 0:00:53.2]} 24... Ke7 {[%clk 0:00:14.5]}
25. Bb7 {[%clk 0:00:53.4]} 25... Nd7 {[%clk 0:00:13.8]} 26. Na5 {[%clk
0:00:48.7]} 26... Ke6 {[%clk 0:00:05.3]} 27. Nc6 {[%clk 0:00:46.8]} 27... Re8
{[%clk 0:00:04.6]} 28. Nxa7 {[%clk 0:00:43.6]} 28... f5 {[%clk 0:00:02.6]} 29.
Rxd7 {[%clk 0:00:37.3]} 29... Kxd7 {[%clk 0:00:03.5]} 30. Bc6+ {[%clk
0:00:37.8]} 30... Kc7 {[%clk 0:00:01.7]} 31. Bxe8 {[%clk 0:00:38.7]} 31... Kb6
{[%clk 0:00:01.9]} 32. Nc6 {[%clk 0:00:31.2]} 32... Kxa6 {[%clk 0:00:02.3]} 33.
Ne7 {[%clk 0:00:30.1]} 33... Ka5 {[%clk 0:00:01.2]} 34. Nd5 {[%clk 0:00:30.6]}
1-0

[Event "Early-Titled-Tuesday-Blitz-February-27-2024"]
[Site "Chess.com"]
[Date "2024.02.27"]
[Round "2"]
[White "GreenPeach24"]
[Black "aljado"]
[Result "1-0"]
[WhiteElo "2452"]
[BlackElo "2038"]
[TimeControl "180+1"]
[EndTime "8:17:04 PST"]
[Termination "GreenPeach24 won by checkmate"]

1. g3 {[%clk 0:02:55.1]} 1... Nf6 {[%clk 0:02:58.9]} 2. Bg2 {[%clk 0:02:55]}
2... g6 {[%clk 0:02:58.9]} 3. c4 {[%clk 0:02:54.7]} 3... Bg7 {[%clk 0:02:58.8]}
4. Nc3 {[%clk 0:02:54.3]} 4... O-O {[%clk 0:02:58.6]} 5. e3 {[%clk 0:02:53.4]}
5... c6 {[%clk 0:02:56.3]} 6. Nge2 {[%clk 0:02:53.1]} 6... d5 {[%clk 0:02:56]}
7. b3 {[%clk 0:02:51]} 7... Bg4 {[%clk 0:02:52.9]} 8. Bb2 {[%clk 0:02:50.5]}
8... e6 {[%clk 0:02:52.8]} 9. d4 {[%clk 0:02:50]} 9... Bxe2 {[%clk 0:02:49.3]}
10. Qxe2 {[%clk 0:02:49.5]} 10... Nbd7 {[%clk 0:02:49.6]} 11. O-O {[%clk
0:02:49.2]} 11... Re8 {[%clk 0:02:38.1]} 12. Rad1 {[%clk 0:02:46.9]} 12... Qc7
{[%clk 0:02:36.5]} 13. Qc2 {[%clk 0:02:46.6]} 13... Rac8 {[%clk 0:02:34.9]} 14.
Rfe1 {[%clk 0:02:45.2]} 14... a6 {[%clk 0:02:32]} 15. Rc1 {[%clk 0:02:42.2]}
15... Qa5 {[%clk 0:02:26.1]} 16. a3 {[%clk 0:02:39.6]} 16... b5 {[%clk 0:02:20]}
17. b4 {[%clk 0:02:30.7]} 17... Qd8 {[%clk 0:02:18.9]} 18. c5 {[%clk 0:02:31.2]}
18... a5 {[%clk 0:02:15.9]} 19. Rcd1 {[%clk 0:02:24]} 19... e5 {[%clk
0:02:12.7]} 20. dxe5 {[%clk 0:02:23.5]} 20... Nxe5 {[%clk 0:02:11.4]} 21. e4
{[%clk 0:02:22.3]} 21... Nc4 {[%clk 0:02:07.5]} 22. exd5 {[%clk 0:02:18.4]}
22... Nxb2 {[%clk 0:02:06.8]} 23. Qxb2 {[%clk 0:02:16.5]} 23... Nxd5 {[%clk
0:02:04.6]} 24. Bxd5 {[%clk 0:02:15.5]} 24... cxd5 {[%clk 0:02:03.8]} 25. Qd2
{[%clk 0:02:14.1]} 25... axb4 {[%clk 0:01:59.8]} 26. axb4 {[%clk 0:02:14.3]}
26... Rxe1+ {[%clk 0:01:58.5]} 27. Rxe1 {[%clk 0:02:14.2]} 27... d4 {[%clk
0:01:58.6]} 28. Nxb5 {[%clk 0:02:11.6]} 28... Rb8 {[%clk 0:01:56.3]} 29. Nd6
{[%clk 0:02:11.5]} 29... Qd7 {[%clk 0:01:49.5]} 30. b5 {[%clk 0:02:03]} 30... h5
{[%clk 0:01:42.3]} 31. Re4 {[%clk 0:01:40.3]} 31... Qc7 {[%clk 0:01:40]} 32. Qa2
{[%clk 0:01:15.5]} 32... d3 {[%clk 0:01:32.7]} 33. b6 {[%clk 0:01:09.5]} 33...
Qxc5 {[%clk 0:01:17.2]} 34. Qxf7+ {[%clk 0:01:08.9]} 34... Kh7 {[%clk 0:01:17]}
35. Re7 {[%clk 0:00:44.2]} 35... Qc1+ {[%clk 0:01:03.1]} 36. Kg2 {[%clk
0:00:42.1]} 36... Qc6+ {[%clk 0:01:01.5]} 37. Ne4 {[%clk 0:00:11.7]} 37... Rg8
{[%clk 0:01:01]} 38. Kh3 {[%clk 0:00:11.5]} 38... Qc8+ {[%clk 0:00:38.3]} 39.
Rd7 {[%clk 0:00:10.8]} 39... Qc6 {[%clk 0:00:35]} 40. Nf6+ {[%clk 0:00:09.4]}
40... Kh6 {[%clk 0:00:31.7]} 41. Nxg8+ {[%clk 0:00:09.3]} 41... Kg5 {[%clk
0:00:31.1]} 42. Qf4# {[%clk 0:00:09.4]} 1-0

[Event "Early-Titled-Tuesday-Blitz-February-27-2024"]
[Site "Chess.com"]
[Date "2024.02.27"]
[Round "2"]
[White "JulbeNn"]
[Black "tsaruk_maks"]
[Result "1-0"]
[WhiteElo "2556"]
[BlackElo "2751"]
[TimeControl "180+1"]
[EndTime "8:17:05 PST"]
[Termination "JulbeNn won on time"]

1. e4 {[%clk 0:03:00.9]} 1... d5 {[%clk 0:02:59.5]} 2. Nc3 {[%clk 0:03:00.9]}
2... d4 {[%clk 0:02:59.4]} 3. Nce2 {[%clk 0:02:59.7]} 3... c5 {[%clk 0:03:00.3]}
4. Nf3 {[%clk 0:02:59.4]} 4... Nc6 {[%clk 0:03:01.2]} 5. Ng3 {[%clk 0:02:59.5]}
5... e6 {[%clk 0:02:57.6]} 6. Bb5 {[%clk 0:02:57.1]} 6... Bd7 {[%clk 0:02:54.9]}
7. O-O {[%clk 0:02:55.5]} 7... a6 {[%clk 0:02:54.1]} 8. Bxc6 {[%clk 0:02:55]}
8... Bxc6 {[%clk 0:02:55]} 9. Ne5 {[%clk 0:02:46.9]} 9... Bb5 {[%clk 0:02:52.3]}
10. d3 {[%clk 0:02:46.9]} 10... Bd6 {[%clk 0:02:52.2]} 11. f4 {[%clk 0:02:41.3]}
11... Ne7 {[%clk 0:02:50.4]} 12. a4 {[%clk 0:02:16.5]} 12... Bc6 {[%clk
0:02:50.8]} 13. Qg4 {[%clk 0:02:11.1]} 13... Bxe5 {[%clk 0:02:42.7]} 14. fxe5
{[%clk 0:02:10.5]} 14... Ng6 {[%clk 0:02:43.6]} 15. Nh5 {[%clk 0:01:57.2]} 15...
Rg8 {[%clk 0:02:44.1]} 16. Bg5 {[%clk 0:01:39.7]} 16... Qc7 {[%clk 0:02:36]} 17.
Rf2 {[%clk 0:01:22.1]} 17... Qxe5 {[%clk 0:02:12.5]} 18. Raf1 {[%clk 0:01:17.6]}
18... f6 {[%clk 0:02:12.9]} 19. Nxg7+ {[%clk 0:00:37.6]} 19... Kd7 {[%clk
0:01:38.4]} 20. Bxf6 {[%clk 0:00:37.3]} 20... Qd6 {[%clk 0:01:39]} 21. Qh5
{[%clk 0:00:23.8]} 21... Rh8 {[%clk 0:00:08.4]} 22. Bg5 {[%clk 0:00:17.9]} 22...
Bxa4 {[%clk 0:00:06.8]} 23. Rf7+ {[%clk 0:00:17.9]} 23... Kc6 {[%clk 0:00:07.1]}
24. b3 {[%clk 0:00:17.4]} 24... Bb5 {[%clk 0:00:07.6]} 25. R1f6 {[%clk
0:00:16.8]} 25... Ne5 {[%clk 0:00:06.2]} 26. Rxe6 {[%clk 0:00:16.1]} 26... Nxf7
{[%clk 0:00:05.5]} 27. Qxf7 {[%clk 0:00:15.8]} 27... Qxe6 {[%clk 0:00:01.7]} 28.
Qxe6+ {[%clk 0:00:12.9]} 28... Kc7 {[%clk 0:00:02.2]} 29. Bf4+ {[%clk
0:00:12.9]} 29... Kd8 {[%clk 0:00:02.7]} 30. Qd6+ {[%clk 0:00:09.8]} 1-0

[Event "Early-Titled-Tuesday-Blitz-February-27-2024"]
[Site "Chess.com"]
[Date "2024.02.27"]
[Round "2"]
[White "TregubovP"]
[Black "annamaja"]
[Result "1-0"]
[WhiteElo "2687"]
[BlackElo "2404"]
[TimeControl "180+1"]
[EndTime "8:17:06 PST"]
[Termination "TregubovP won by resignation"]

1. e4 {[%clk 0:03:00.9]} 1... e6 {[%clk 0:02:59.9]} 2. d4 {[%clk 0:03:00.2]}
2... d5 {[%clk 0:02:59.8]} 3. e5 {[%clk 0:03:00.5]} 3... c5 {[%clk 0:02:59.7]}
4. c3 {[%clk 0:03:01.1]} 4... Bd7 {[%clk 0:03:00.2]} 5. Nf3 {[%clk 0:03:00.8]}
5... Qb6 {[%clk 0:03:00.4]} 6. Be2 {[%clk 0:02:59.4]} 6... Bb5 {[%clk
0:02:59.9]} 7. dxc5 {[%clk 0:02:57.6]} 7... Bxc5 {[%clk 0:02:59.2]} 8. b4 {[%clk
0:02:53.3]} 8... Bxe2 {[%clk 0:02:35.9]} 9. Qxe2 {[%clk 0:02:52.5]} 9... Bf8
{[%clk 0:02:33.9]} 10. O-O {[%clk 0:02:50.8]} 10... Nd7 {[%clk 0:02:31.1]} 11.
Be3 {[%clk 0:02:41.2]} 11... Qc7 {[%clk 0:02:29.5]} 12. Na3 {[%clk 0:02:35.6]}
12... a6 {[%clk 0:02:29.1]} 13. Rac1 {[%clk 0:02:29.2]} 13... b5 {[%clk
0:02:25.8]} 14. Bd4 {[%clk 0:01:51.2]} 14... Ne7 {[%clk 0:02:25.2]} 15. Nc2
{[%clk 0:01:51.4]} 15... Ng6 {[%clk 0:02:15.2]} 16. a4 {[%clk 0:01:50.8]} 16...
Qc4 {[%clk 0:01:40.9]} 17. Qe3 {[%clk 0:01:40.4]} 17... Be7 {[%clk 0:01:27.3]}
18. Na3 {[%clk 0:01:23]} 18... Qb3 {[%clk 0:01:19.7]} 19. Ra1 {[%clk 0:01:21.1]}
19... Qxa4 {[%clk 0:00:44.6]} 20. Qd2 {[%clk 0:01:10.6]} 20... a5 {[%clk
0:00:26.4]} 21. Rfb1 {[%clk 0:01:10.1]} 21... axb4 {[%clk 0:00:25.4]} 22. Nc2
{[%clk 0:01:10.5]} 22... b3 {[%clk 0:00:16.1]} 23. Rxa4 {[%clk 0:01:07.4]} 23...
bxa4 {[%clk 0:00:17]} 24. Ne3 {[%clk 0:00:52.9]} 24... O-O {[%clk 0:00:13.4]}
25. g3 {[%clk 0:00:39.7]} 25... Rfb8 {[%clk 0:00:13.4]} 26. c4 {[%clk 0:00:40]}
26... a3 {[%clk 0:00:11.4]} 27. cxd5 {[%clk 0:00:39.7]} 27... Bb4 {[%clk
0:00:05.1]} 28. Qd1 {[%clk 0:00:33.7]} 28... b2 {[%clk 0:00:02.8]} 29. Bxb2
{[%clk 0:00:31.3]} 29... axb2 {[%clk 0:00:02.3]} 30. Rxb2 {[%clk 0:00:31.6]}
30... Ndxe5 {[%clk 0:00:02.2]} 31. Nxe5 {[%clk 0:00:30.2]} 31... Nxe5 {[%clk
0:00:03.1]} 32. dxe6 {[%clk 0:00:30.2]} 32... fxe6 {[%clk 0:00:03.5]} 33. Qb3
{[%clk 0:00:21.1]} 33... Ra1+ {[%clk 0:00:02.7]} 34. Kg2 {[%clk 0:00:20.6]}
34... Bd6 {[%clk 0:00:03.3]} 35. Qxe6+ {[%clk 0:00:16.8]} 1-0

[Event "Early-Titled-Tuesday-Blitz-February-27-2024"]
[Site "Chess.com"]
[Date "2024.02.27"]
[Round "2"]
[White "ArmanGhevondyanchess"]
[Black "Kostukov_Alex"]
[Result "1/2-1/2"]
[WhiteElo "2583"]
[BlackElo "2368"]
[TimeControl "180+1"]
[EndTime "8:17:06 PST"]
[Termination "Game drawn by repetition"]

1. Nf3 {[%clk 0:03:00.9]} 1... g6 {[%clk 0:02:58.9]} 2. d4 {[%clk 0:02:58.6]}
2... Bg7 {[%clk 0:02:58.6]} 3. g3 {[%clk 0:02:58.6]} 3... d6 {[%clk 0:02:57]} 4.
Bg2 {[%clk 0:02:58.8]} 4... e5 {[%clk 0:02:57.2]} 5. dxe5 {[%clk 0:02:58.7]}
5... dxe5 {[%clk 0:02:58.1]} 6. Qxd8+ {[%clk 0:02:58.2]} 6... Kxd8 {[%clk
0:02:59]} 7. O-O {[%clk 0:02:58.6]} 7... f6 {[%clk 0:02:59.3]} 8. Nc3 {[%clk
0:02:58.5]} 8... c6 {[%clk 0:02:56.6]} 9. Rd1+ {[%clk 0:02:58.5]} 9... Kc7
{[%clk 0:02:51.6]} 10. Be3 {[%clk 0:02:58.6]} 10... Na6 {[%clk 0:02:47.4]} 11.
Rd2 {[%clk 0:02:58.4]} 11... Bh6 {[%clk 0:02:43.3]} 12. Bxh6 {[%clk 0:02:57.6]}
12... Nxh6 {[%clk 0:02:43.5]} 13. Rad1 {[%clk 0:02:57.9]} 13... Be6 {[%clk
0:02:43.6]} 14. a3 {[%clk 0:02:54.5]} 14... Rad8 {[%clk 0:02:36.9]} 15. Ne4
{[%clk 0:02:53.9]} 15... Rxd2 {[%clk 0:02:31]} 16. Rxd2 {[%clk 0:02:52.4]} 16...
Rf8 {[%clk 0:02:29.4]} 17. Nc3 {[%clk 0:02:43]} 17... Nf7 {[%clk 0:02:22.5]} 18.
h4 {[%clk 0:02:39.2]} 18... Nd6 {[%clk 0:02:21.8]} 19. b3 {[%clk 0:02:31.8]}
19... Nc5 {[%clk 0:02:19.9]} 20. Ne1 {[%clk 0:02:27.5]} 20... Bf5 {[%clk
0:02:04.9]} 21. b4 {[%clk 0:02:22.5]} 21... Nce4 {[%clk 0:01:53.1]} 22. Nxe4
{[%clk 0:02:22.4]} 22... Nxe4 {[%clk 0:01:53.2]} 23. Bxe4 {[%clk 0:02:22.2]}
23... Bxe4 {[%clk 0:01:53.5]} 24. f3 {[%clk 0:02:22.9]} 24... Bd5 {[%clk
0:01:53.1]} 25. e4 {[%clk 0:02:22.6]} 25... Bc4 {[%clk 0:01:52.3]} 26. Kf2
{[%clk 0:02:22.3]} 26... a5 {[%clk 0:01:50.9]} 27. Nd3 {[%clk 0:02:16.2]} 27...
Bxd3 {[%clk 0:01:48.8]} 28. Rxd3 {[%clk 0:02:16.3]} 28... axb4 {[%clk
0:01:49.5]} 29. axb4 {[%clk 0:02:17.2]} 29... Ra8 {[%clk 0:01:46.6]} 30. Ke3
{[%clk 0:02:16.1]} 30... Ra1 {[%clk 0:01:37.4]} 31. Rd2 {[%clk 0:02:09]} 31...
Rb1 {[%clk 0:01:28.7]} 32. c3 {[%clk 0:02:08.3]} 32... Rc1 {[%clk 0:01:28.5]}
33. Kd3 {[%clk 0:02:08.3]} 33... Rg1 {[%clk 0:01:22.4]} 34. g4 {[%clk 0:02:08]}
34... Rh1 {[%clk 0:01:22.5]} 35. h5 {[%clk 0:02:04.2]} 35... gxh5 {[%clk
0:01:20.4]} 36. gxh5 {[%clk 0:02:05.1]} 36... Rxh5 {[%clk 0:01:20.1]} 37. Rg2
{[%clk 0:02:05.6]} 37... Rh6 {[%clk 0:01:14.7]} 38. Rg7+ {[%clk 0:02:04.4]}
38... Kb6 {[%clk 0:01:13.8]} 39. c4 {[%clk 0:02:03.6]} 39... Ka6 {[%clk
0:01:12]} 40. Rg8 {[%clk 0:01:59.4]} 40... Kb6 {[%clk 0:01:11]} 41. Rg7 {[%clk
0:01:58.5]} 41... Rh3 {[%clk 0:01:07.5]} 42. Ke3 {[%clk 0:01:57.5]} 42... Rh1
{[%clk 0:01:06.1]} 43. Rf7 {[%clk 0:01:55.8]} 43... Rb1 {[%clk 0:00:54.5]} 44.
b5 {[%clk 0:01:55.9]} 44... Rb3+ {[%clk 0:00:47.2]} 45. Kf2 {[%clk 0:01:56]}
45... cxb5 {[%clk 0:00:43.8]} 46. Rxf6+ {[%clk 0:01:55.6]} 46... Kc5 {[%clk
0:00:44]} 47. cxb5 {[%clk 0:01:55.7]} 47... Rxb5 {[%clk 0:00:43.4]} 48. Rf7
{[%clk 0:01:56.1]} 48... Rb1 {[%clk 0:00:39.5]} 49. Rxh7 {[%clk 0:01:55.4]}
49... b5 {[%clk 0:00:39.7]} 50. Re7 {[%clk 0:01:54.3]} 50... Kd6 {[%clk
0:00:38.9]} 51. Rb7 {[%clk 0:01:53.6]} 51... Kc6 {[%clk 0:00:39.2]} 52. Rb8
{[%clk 0:01:53.6]} 52... Kc7 {[%clk 0:00:39.5]} 53. Re8 {[%clk 0:01:52.9]} 53...
Kd6 {[%clk 0:00:39.4]} 54. Rb8 {[%clk 0:01:51.6]} 54... Kc7 {[%clk 0:00:39.2]}
55. Re8 {[%clk 0:01:50.1]} 55... Kd6 {[%clk 0:00:39.1]} 56. Kg3 {[%clk 0:01:45]}
56... Rg1+ {[%clk 0:00:37.4]} 57. Kf2 {[%clk 0:01:43.9]} 57... Rg7 {[%clk
0:00:30.6]} 58. Rb8 {[%clk 0:01:42.9]} 58... Kc5 {[%clk 0:00:28.2]} 59. Ke3
{[%clk 0:01:38.3]} 59... Re7 {[%clk 0:00:23.3]} 60. f4 {[%clk 0:01:34.2]} 60...
exf4+ {[%clk 0:00:22.3]} 61. Kxf4 {[%clk 0:01:35.1]} 61... Kc4 {[%clk
0:00:20.3]} 62. e5 {[%clk 0:01:33.8]} 62... b4 {[%clk 0:00:20.5]} 63. Rc8+
{[%clk 0:01:32.7]} 63... Kd4 {[%clk 0:00:19.5]} 64. Rd8+ {[%clk 0:01:32.5]}
64... Kc4 {[%clk 0:00:19.4]} 65. Kf5 {[%clk 0:01:31.1]} 65... b3 {[%clk
0:00:19]} 66. Rb8 {[%clk 0:01:31.1]} 66... Kc3 {[%clk 0:00:18.6]} 67. Kf6 {[%clk
0:01:31.8]} 67... Rxe5 {[%clk 0:00:17.5]} 68. Kxe5 {[%clk 0:01:32.7]} 68... b2
{[%clk 0:00:17.9]} 69. Ke4 {[%clk 0:01:30.2]} 69... Kc2 {[%clk 0:00:18]} 70.
Rc8+ {[%clk 0:01:30.7]} 70... Kd2 {[%clk 0:00:18.4]} 71. Rd8+ {[%clk 0:01:29.9]}
71... Kc2 {[%clk 0:00:18.6]} 72. Rc8+ {[%clk 0:01:30.2]} 72... Kd2 {[%clk
0:00:18.9]} 73. Rd8+ {[%clk 0:01:30.8]} 73... Kc2 {[%clk 0:00:19.3]} 74. Rc8+
{[%clk 0:01:30.6]} 1/2-1/2

[Event "Early-Titled-Tuesday-Blitz-February-27-2024"]
[Site "Chess.com"]
[Date "2024.02.27"]
[Round "2"]
[White "newauto"]
[Black "zsizsi99"]
[Result "1-0"]
[WhiteElo "2227"]
[BlackElo "2460"]
[TimeControl "180+1"]
[EndTime "8:17:06 PST"]
[Termination "newauto won on time"]

1. d4 {[%clk 0:03:00.9]} 1... Nf6 {[%clk 0:02:59.1]} 2. Nf3 {[%clk 0:03:01.8]}
2... e6 {[%clk 0:02:53.8]} 3. Bg5 {[%clk 0:03:02.3]} 3... c5 {[%clk 0:02:53.2]}
4. e3 {[%clk 0:03:02.5]} 4... b6 {[%clk 0:02:50.1]} 5. Nbd2 {[%clk 0:03:00.7]}
5... Bb7 {[%clk 0:02:50.4]} 6. Bd3 {[%clk 0:03:00.3]} 6... h6 {[%clk 0:02:49.2]}
7. Bh4 {[%clk 0:03:00.2]} 7... Be7 {[%clk 0:02:45.8]} 8. O-O {[%clk 0:02:59.6]}
8... O-O {[%clk 0:02:36.1]} 9. Re1 {[%clk 0:02:58.9]} 9... Nc6 {[%clk
0:02:28.9]} 10. c3 {[%clk 0:02:58.6]} 10... d5 {[%clk 0:02:28.2]} 11. Ne5 {[%clk
0:02:58.4]} 11... Nd7 {[%clk 0:02:14.9]} 12. Bg3 {[%clk 0:02:56.7]} 12... f5
{[%clk 0:01:47.3]} 13. Ng6 {[%clk 0:02:51.8]} 13... Rf7 {[%clk 0:01:43.8]} 14.
Nxe7+ {[%clk 0:02:47.2]} 14... Qxe7 {[%clk 0:01:44.4]} 15. Nf3 {[%clk
0:02:37.4]} 15... e5 {[%clk 0:01:42.6]} 16. dxe5 {[%clk 0:02:33.1]} 16... Ncxe5
{[%clk 0:01:40.8]} 17. Nxe5 {[%clk 0:02:32]} 17... Nxe5 {[%clk 0:01:40.3]} 18.
Bc2 {[%clk 0:02:30.9]} 18... Rd8 {[%clk 0:01:35.5]} 19. Qh5 {[%clk 0:02:27.4]}
19... Qe6 {[%clk 0:01:30.1]} 20. Rad1 {[%clk 0:02:21.9]} 20... Qf6 {[%clk
0:00:49.9]} 21. e4 {[%clk 0:02:04.7]} 21... fxe4 {[%clk 0:00:41.8]} 22. Qxe5
{[%clk 0:02:01.8]} 22... Qxe5 {[%clk 0:00:37.4]} 23. Bxe5 {[%clk 0:02:01.2]}
23... Re7 {[%clk 0:00:32.3]} 24. Bg3 {[%clk 0:01:55.8]} 24... d4 {[%clk
0:00:31.5]} 25. Bb3+ {[%clk 0:01:50.7]} 25... Kf8 {[%clk 0:00:21.4]} 26. f4
{[%clk 0:01:34.2]} 26... Ree8 {[%clk 0:00:09.4]} 27. f5 {[%clk 0:01:30.7]} 27...
b5 {[%clk 0:00:06.4]} 28. Be6 {[%clk 0:01:30.2]} 28... d3 {[%clk 0:00:04.3]} 29.
b3 {[%clk 0:01:26.7]} 29... g6 {[%clk 0:00:01.1]} 30. Bf4 {[%clk 0:01:25.7]}
30... gxf5 {[%clk 0:00:01.7]} 31. Bxh6+ {[%clk 0:01:23.6]} 31... Ke7 {[%clk
0:00:02.4]} 32. Bxf5 {[%clk 0:01:24.3]} 32... Kf6 {[%clk 0:00:02.9]} 33. Bg4
{[%clk 0:01:21.5]} 33... Kg6 {[%clk 0:00:03.3]} 34. Bf4 {[%clk 0:01:20.2]} 34...
c4 {[%clk 0:00:03.1]} 35. bxc4 {[%clk 0:01:19.6]} 35... bxc4 {[%clk 0:00:03.6]}
36. h4 {[%clk 0:01:20.1]} 36... Bc6 {[%clk 0:00:03.6]} 37. h5+ {[%clk
0:01:20.5]} 37... Kg7 {[%clk 0:00:03.3]} 38. h6+ {[%clk 0:01:19.8]} 38... Kh8
{[%clk 0:00:04]} 39. Bg5 {[%clk 0:01:17.2]} 39... Rb8 {[%clk 0:00:03]} 40. Bf5
{[%clk 0:01:15.7]} 40... Ba4 {[%clk 0:00:02.8]} 41. Bf6+ {[%clk 0:01:14.7]}
41... Kg8 {[%clk 0:00:02.5]} 42. h7+ {[%clk 0:01:14.9]} 42... Kf7 {[%clk
0:00:03.1]} 43. h8=Q {[%clk 0:01:11.1]} 43... Rxh8 {[%clk 0:00:03.7]} 44. Bxh8
{[%clk 0:01:11.2]} 44... Rxh8 {[%clk 0:00:04.2]} 45. Rb1 {[%clk 0:01:07.4]}
45... d2 {[%clk 0:00:04.6]} 46. Rf1 {[%clk 0:01:06.4]} 46... e3 {[%clk
0:00:02.9]} 47. Bc2+ {[%clk 0:01:03.1]} 47... Kg7 {[%clk 0:00:01.6]} 48. Bxa4
{[%clk 0:01:03.1]} 48... e2 {[%clk 0:00:02]} 49. Bb5 {[%clk 0:00:57.1]} 49...
Re8 {[%clk 0:00:01.5]} 50. Bxe8 {[%clk 0:00:54.5]} 1-0